[Event "Titled Tuesday Blitz July 18 Early 2023"]
[White "Dehtiarov, Roman"]
[Black "Palencia Morales, Wilson Guillermo"]
[WhiteFideId "14186640"]
[BlackFideId "4401859"]
[WhiteElo "2737"]
[BlackElo "2560"]
[Result "1-0"]
[Round "5"]
[TimeControl "180+2"]
[Date "2023.07.18"]
[WhiteClock "0:00:04"]
[BlackClock "0:00:00"]
[Board "46"]

1. c4 {[%clk 0:03:00]}  c5 {[%clk 0:02:59]} 2. g3 {[%clk 0:03:00]}  Nc6 {[%clk 0:02:59]} 3. Bg2 {[%clk 0:03:00]}  Nf6 {[%clk 0:03:00]} 4. Nc3 {[%clk 0:03:00]}  e6 {[%clk 0:03:00]} 5. Nf3 {[%clk 0:02:52]}  Be7 {[%clk 0:02:59]} 6. d4 {[%clk 0:02:50]}  cxd4 {[%clk 0:02:58]} 7. Nxd4 {[%clk 0:02:51]}  O-O {[%clk 0:02:51]} 8. O-O {[%clk 0:02:49]}  d5 {[%clk 0:02:50]} 9. cxd5 {[%clk 0:02:40]}  exd5 {[%clk 0:02:49]} 10. Bg5 {[%clk 0:02:40]}  Be6 {[%clk 0:02:46]} 11. Nxe6 {[%clk 0:02:34]}  fxe6 {[%clk 0:02:46]} 12. Qd2 {[%clk 0:02:08]}  h6 {[%clk 0:02:43]} 13. Bxf6 {[%clk 0:02:02]}  Bxf6 {[%clk 0:02:44]} 14. Rad1 {[%clk 0:02:02]}  Qb6 {[%clk 0:02:39]} 15. e4 {[%clk 0:01:53]}  dxe4 {[%clk 0:02:25]} 16. Nxe4 {[%clk 0:01:48]}  Bd4 {[%clk 0:02:14]} 17. Qe2 {[%clk 0:01:01]}  e5 {[%clk 0:02:06]} 18. Nd6 {[%clk 0:00:44]}  Ne7 {[%clk 0:01:35]} 19. Nc4 {[%clk 0:00:15]}  Qf6 {[%clk 0:01:32]} 20. Bxb7 {[%clk 0:00:08]}  Rab8 {[%clk 0:01:31]} 21. Be4 {[%clk 0:00:08]}  Nf5 {[%clk 0:01:13]} 22. Bxf5 {[%clk 0:00:01]}  Qxf5 {[%clk 0:01:13]} 23. Rde1 {[%clk 0:00:01]}  Rbe8 {[%clk 0:01:05]} 24. b3 {[%clk 0:00:02]}  h5 {[%clk 0:00:59]} 25. Nd6 {[%clk 0:00:02]}  Qh3 {[%clk 0:00:52]} 26. Nxe8 {[%clk 0:00:02]}  Rxe8 {[%clk 0:00:52]} 27. Qf3 {[%clk 0:00:03]}  Rf8 {[%clk 0:00:51]} 28. Qd5+ {[%clk 0:00:03]}  Kh7 {[%clk 0:00:49]} 29. Qg2 {[%clk 0:00:03]}  Qg4 {[%clk 0:00:48]} 30. Qe4+ {[%clk 0:00:04]}  Kh6 {[%clk 0:00:31]} 31. Qxg4 {[%clk 0:00:04]}  hxg4 {[%clk 0:00:32]} 32. Re4 {[%clk 0:00:04]}  Kg5 {[%clk 0:00:32]} 33. Rxd4 {[%clk 0:00:03]}  exd4 {[%clk 0:00:31]} 34. Rd1 {[%clk 0:00:04]}  Rd8 {[%clk 0:00:31]} 35. f3 {[%clk 0:00:04]}  Kf5 {[%clk 0:00:26]} 36. Kf2 {[%clk 0:00:04]}  g5 {[%clk 0:00:24]} 37. Rd3 {[%clk 0:00:03]}  gxf3 {[%clk 0:00:21]} 38. Kxf3 {[%clk 0:00:03]}  g4+ {[%clk 0:00:21]} 39. Kf2 {[%clk 0:00:03]}  Ke4 {[%clk 0:00:22]} 40. Rd1 {[%clk 0:00:02]}  d3 {[%clk 0:00:21]} 41. Re1+ {[%clk 0:00:01]}  Kd4 {[%clk 0:00:21]} 42. Rc1 {[%clk 0:00:01]}  d2 {[%clk 0:00:19]} 43. Rd1 {[%clk 0:00:01]}  Kd3 {[%clk 0:00:19]} 44. h3 {[%clk 0:00:02]}  Rf8+ {[%clk 0:00:19]} 45. Kg2 {[%clk 0:00:02]}  Ke2 {[%clk 0:00:19]} 46. Rh1 {[%clk 0:00:01]}  d1=Q {[%clk 0:00:19]} 47. Rxd1 {[%clk 0:00:01]}  Kxd1 {[%clk 0:00:20]} 48. hxg4 {[%clk 0:00:02]}  Ke2 {[%clk 0:00:20]} 49. g5 {[%clk 0:00:03]}  Rg8 {[%clk 0:00:20]} 50. g4 {[%clk 0:00:03]}  Rxg5 {[%clk 0:00:20]} 51. Kg3 {[%clk 0:00:04]}  Ke3 {[%clk 0:00:20]} 52. b4 {[%clk 0:00:04]}  Ke4 {[%clk 0:00:20]} 53. a4 {[%clk 0:00:04]}  a6 {[%clk 0:00:00]} 54. Kh4 {[%clk 0:00:04]} 1-0


[Site "https://www.chess.com"]

[Event "Titled Tuesday Blitz July 18 Early 2023"]
[White "Trifan, Andrei Ioan"]
[Black "Preotu, Razvan"]
[WhiteFideId "12967068"]
[BlackFideId "2613280"]
[WhiteElo "2546"]
[BlackElo "2736"]
[Result "0-1"]
[Round "5"]
[TimeControl "180+2"]
[Date "2023.07.18"]
[WhiteClock "0:01:35"]
[BlackClock "0:01:47"]
[Board "47"]

1. d4 {[%clk 0:03:00]}  Nf6 {[%clk 0:02:59]} 2. Nf3 {[%clk 0:02:55]}  g6 {[%clk 0:03:00]} 3. c4 {[%clk 0:02:54]}  Bg7 {[%clk 0:03:00]} 4. e3 {[%clk 0:02:54]}  O-O {[%clk 0:03:00]} 5. Be2 {[%clk 0:02:54]}  c5 {[%clk 0:03:00]} 6. O-O {[%clk 0:02:53]}  cxd4 {[%clk 0:02:59]} 7. Nxd4 {[%clk 0:02:51]}  Nc6 {[%clk 0:02:58]} 8. b3 {[%clk 0:02:51]}  Nxd4 {[%clk 0:02:57]} 9. exd4 {[%clk 0:02:52]}  d5 {[%clk 0:02:57]} 10. c5 {[%clk 0:02:49]}  b6 {[%clk 0:02:54]} 11. Ba3 {[%clk 0:02:44]}  Ne4 {[%clk 0:02:46]} 12. cxb6 {[%clk 0:02:41]}  Qxb6 {[%clk 0:02:27]} 13. Bb2 {[%clk 0:02:40]}  a5 {[%clk 0:02:12]} 14. Nc3 {[%clk 0:02:24]}  Qxd4 {[%clk 0:02:03]} 15. Nxe4 {[%clk 0:01:46]}  Qxb2 {[%clk 0:02:01]} 16. Nc5 {[%clk 0:01:37]}  Qxa1 {[%clk 0:01:59]} 17. Qxd5 {[%clk 0:01:35]}  Qxa2 {[%clk 0:01:47]} 0-1


[Site "https://www.chess.com"]

[Event "Titled Tuesday Blitz July 18 Early 2023"]
[White "Mogirzan, Matei-Valeriu"]
[Black "Suyarov, Mukhammadzokhid"]
[WhiteFideId "1257455"]
[BlackFideId "14210495"]
[WhiteElo "2558"]
[BlackElo "2734"]
[Result "1-0"]
[Round "5"]
[TimeControl "180+2"]
[Date "2023.07.18"]
[WhiteClock "0:00:22"]
[BlackClock "0:01:34"]
[Board "48"]

1. e4 {[%clk 0:03:00]}  e6 {[%clk 0:02:58]} 2. d4 {[%clk 0:02:59]}  d5 {[%clk 0:02:59]} 3. Nd2 {[%clk 0:02:59]}  h6 {[%clk 0:02:59]} 4. c4 {[%clk 0:02:55]}  dxc4 {[%clk 0:02:57]} 5. Ngf3 {[%clk 0:02:53]}  Nf6 {[%clk 0:02:55]} 6. Bxc4 {[%clk 0:02:45]}  Nc6 {[%clk 0:02:55]} 7. e5 {[%clk 0:02:42]}  Nd5 {[%clk 0:02:52]} 8. a3 {[%clk 0:02:39]}  Nb6 {[%clk 0:02:51]} 9. Bd3 {[%clk 0:02:29]}  Nxd4 {[%clk 0:02:50]} 10. Nxd4 {[%clk 0:02:30]}  Qxd4 {[%clk 0:02:50]} 11. Nf3 {[%clk 0:02:31]}  Qd8 {[%clk 0:02:50]} 12. O-O {[%clk 0:02:25]}  Bd7 {[%clk 0:02:51]} 13. Qe2 {[%clk 0:02:20]}  Bc6 {[%clk 0:02:44]} 14. b4 {[%clk 0:02:10]}  Bd5 {[%clk 0:02:41]} 15. Bf4 {[%clk 0:01:56]}  Ke7 {[%clk 0:02:41]} 16. Rac1 {[%clk 0:01:48]}  c6 {[%clk 0:02:37]} 17. b5 {[%clk 0:01:36]}  Rc8 {[%clk 0:02:36]} 18. bxc6 {[%clk 0:01:29]}  bxc6 {[%clk 0:02:37]} 19. Ba6 {[%clk 0:01:28]}  Rc7 {[%clk 0:02:36]} 20. Be3 {[%clk 0:01:26]}  Ke8 {[%clk 0:02:35]} 21. Nd4 {[%clk 0:01:21]}  Bxa3 {[%clk 0:02:29]} 22. Ra1 {[%clk 0:01:20]}  Be7 {[%clk 0:02:27]} 23. f4 {[%clk 0:01:17]}  g6 {[%clk 0:02:27]} 24. Bd3 {[%clk 0:01:05]}  h5 {[%clk 0:02:25]} 25. g4 {[%clk 0:00:50]}  hxg4 {[%clk 0:02:25]} 26. Qxg4 {[%clk 0:00:51]}  Nd7 {[%clk 0:02:21]} 27. Bxg6 {[%clk 0:00:47]}  Rg8 {[%clk 0:02:21]} 28. f5 {[%clk 0:00:43]}  Nxe5 {[%clk 0:02:21]} 29. Bxf7+ {[%clk 0:00:37]}  Nxf7 {[%clk 0:01:50]} 30. Qxg8+ {[%clk 0:00:33]}  Kd7 {[%clk 0:01:50]} 31. Qxf7 {[%clk 0:00:31]}  e5 {[%clk 0:01:51]} 32. Ne6 {[%clk 0:00:28]}  Qh8 {[%clk 0:01:50]} 33. f6 {[%clk 0:00:22]}  Qe8 {[%clk 0:01:37]} 34. Qxe8+ {[%clk 0:00:21]}  Kxe8 {[%clk 0:01:38]} 35. Nxc7+ {[%clk 0:00:21]}  Kf7 {[%clk 0:01:36]} 36. fxe7+ {[%clk 0:00:21]}  Kxe7 {[%clk 0:01:37]} 37. Nxd5+ {[%clk 0:00:22]}  cxd5 {[%clk 0:01:37]} 38. Ra6 {[%clk 0:00:22]}  d4 {[%clk 0:01:38]} 39. Rb1 {[%clk 0:00:21]}  dxe3 {[%clk 0:01:37]} 40. Rb7+ {[%clk 0:00:22]}  Kd8 {[%clk 0:01:37]} 41. Rh6 {[%clk 0:00:22]}  Kc8 {[%clk 0:01:34]} 42. Rg7 {[%clk 0:00:22]} 1-0


[Site "https://www.chess.com"]

[Event "Titled Tuesday Blitz July 18 Early 2023"]
[White "Matinian, Nikita"]
[Black "Herman, Daniel"]
[WhiteFideId "24129100"]
[BlackFideId "30935008"]
[WhiteElo "2712"]
[BlackElo "2447"]
[Result "1-0"]
[Round "5"]
[TimeControl "180+2"]
[Date "2023.07.18"]
[WhiteClock "0:00:39"]
[BlackClock "0:00:06"]
[Board "53"]

1. e4 {[%clk 0:01:37]}  Nf6 {[%clk 0:03:00]} 2. e5 {[%clk 0:01:36]}  Nd5 {[%clk 0:03:00]} 3. d4 {[%clk 0:01:37]}  d6 {[%clk 0:03:00]} 4. Nf3 {[%clk 0:01:37]}  dxe5 {[%clk 0:02:59]} 5. Nxe5 {[%clk 0:01:38]}  Bf5 {[%clk 0:02:59]} 6. Bc4 {[%clk 0:01:38]}  e6 {[%clk 0:02:58]} 7. O-O {[%clk 0:01:38]}  Nd7 {[%clk 0:02:57]} 8. Qe2 {[%clk 0:01:37]}  Nxe5 {[%clk 0:02:49]} 9. dxe5 {[%clk 0:01:38]}  Nb6 {[%clk 0:02:40]} 10. Rd1 {[%clk 0:01:29]}  Qc8 {[%clk 0:02:39]} 11. Bb3 {[%clk 0:01:29]}  Be7 {[%clk 0:02:37]} 12. a4 {[%clk 0:01:29]}  a5 {[%clk 0:02:35]} 13. Na3 {[%clk 0:01:29]}  O-O {[%clk 0:02:32]} 14. Nb5 {[%clk 0:01:29]}  Rd8 {[%clk 0:02:19]} 15. c3 {[%clk 0:01:27]}  Nd5 {[%clk 0:02:05]} 16. h3 {[%clk 0:01:08]}  h6 {[%clk 0:01:58]} 17. g4 {[%clk 0:01:05]}  Bg6 {[%clk 0:01:55]} 18. f4 {[%clk 0:00:59]}  c6 {[%clk 0:01:42]} 19. Nd6 {[%clk 0:00:58]}  Qb8 {[%clk 0:01:33]} 20. c4 {[%clk 0:00:58]}  Nb4 {[%clk 0:01:29]} 21. c5 {[%clk 0:00:58]}  b6 {[%clk 0:01:24]} 22. f5 {[%clk 0:00:59]}  Bxd6 {[%clk 0:01:08]} 23. cxd6 {[%clk 0:00:59]}  exf5 {[%clk 0:01:03]} 24. gxf5 {[%clk 0:00:59]}  Bxf5 {[%clk 0:01:02]} 25. Qh5 {[%clk 0:00:59]}  Be6 {[%clk 0:00:49]} 26. Bxe6 {[%clk 0:00:59]}  fxe6 {[%clk 0:00:50]} 27. Bxh6 {[%clk 0:01:00]}  Ra7 {[%clk 0:00:31]} 28. Ra3 {[%clk 0:00:59]}  gxh6 {[%clk 0:00:19]} 29. Rg3+ {[%clk 0:00:59]}  Rg7 {[%clk 0:00:20]} 30. Rxg7+ {[%clk 0:00:59]}  Kxg7 {[%clk 0:00:21]} 31. Rd4 {[%clk 0:00:50]}  Rg8 {[%clk 0:00:19]} 32. Rg4+ {[%clk 0:00:49]}  Kh7 {[%clk 0:00:08]} 33. Qf7+ {[%clk 0:00:49]}  Kh8 {[%clk 0:00:09]} 34. Rxg8+ {[%clk 0:00:38]}  Qxg8+ {[%clk 0:00:09]} 35. Qxg8+ {[%clk 0:00:39]}  Kxg8 {[%clk 0:00:06]} 36. d7 {[%clk 0:00:39]} 1-0


[Site "https://www.chess.com"]

[Event "Titled Tuesday Blitz July 18 Early 2023"]
[White "Basso, Pier Luigi"]
[Black "Gabdushev, Ruslan"]
[WhiteFideId "866970"]
[BlackFideId "4137833"]
[WhiteElo "2705"]
[BlackElo "2434"]
[Result "1-0"]
[Round "5"]
[TimeControl "180+2"]
[Date "2023.07.18"]
[WhiteClock "0:01:03"]
[BlackClock "0:00:00"]
[Board "54"]

1. d4 {[%clk 0:03:00]}  Nc6 {[%clk 0:02:57]} 2. c4 {[%clk 0:02:58]}  e5 {[%clk 0:02:56]} 3. d5 {[%clk 0:02:57]}  Nce7 {[%clk 0:02:56]} 4. h4 {[%clk 0:02:57]}  Nf6 {[%clk 0:02:53]} 5. Nc3 {[%clk 0:02:57]}  d6 {[%clk 0:02:50]} 6. e4 {[%clk 0:02:56]}  g6 {[%clk 0:02:47]} 7. Be2 {[%clk 0:02:53]}  h6 {[%clk 0:02:42]} 8. h5 {[%clk 0:02:50]}  g5 {[%clk 0:02:41]} 9. g4 {[%clk 0:02:50]}  c6 {[%clk 0:02:31]} 10. Be3 {[%clk 0:02:47]}  Qa5 {[%clk 0:02:23]} 11. Kf1 {[%clk 0:02:45]}  c5 {[%clk 0:02:12]} 12. Kg2 {[%clk 0:02:43]}  Bd7 {[%clk 0:02:08]} 13. f3 {[%clk 0:02:41]}  a6 {[%clk 0:02:01]} 14. a4 {[%clk 0:02:35]}  Nc8 {[%clk 0:01:52]} 15. Bd3 {[%clk 0:02:34]}  Be7 {[%clk 0:01:50]} 16. Nge2 {[%clk 0:02:33]}  Kf8 {[%clk 0:01:47]} 17. Qd2 {[%clk 0:02:31]}  Ne8 {[%clk 0:01:45]} 18. Rhb1 {[%clk 0:02:29]}  Kg7 {[%clk 0:01:43]} 19. Ng3 {[%clk 0:02:28]}  Qc7 {[%clk 0:01:36]} 20. a5 {[%clk 0:02:28]}  Bd8 {[%clk 0:01:21]} 21. b4 {[%clk 0:02:24]}  b6 {[%clk 0:01:04]} 22. Qf2 {[%clk 0:01:55]}  Be7 {[%clk 0:00:47]} 23. Rb2 {[%clk 0:01:37]}  bxa5 {[%clk 0:00:42]} 24. bxc5 {[%clk 0:01:36]}  dxc5 {[%clk 0:00:41]} 25. Rab1 {[%clk 0:01:34]}  Ra7 {[%clk 0:00:29]} 26. Bc2 {[%clk 0:01:32]}  Kf6 {[%clk 0:00:22]} 27. Ba4 {[%clk 0:01:30]}  Ncd6 {[%clk 0:00:13]} 28. Bxd7 {[%clk 0:01:25]}  Qxd7 {[%clk 0:00:11]} 29. Bxc5 {[%clk 0:01:25]}  Rc7 {[%clk 0:00:11]} 30. Rb6 {[%clk 0:01:23]}  Kg7 {[%clk 0:00:10]} 31. Bxd6 {[%clk 0:01:17]}  Nxd6 {[%clk 0:00:10]} 32. Rxd6 {[%clk 0:01:17]}  Bxd6 {[%clk 0:00:10]} 33. Nf5+ {[%clk 0:01:17]}  Kf6 {[%clk 0:00:10]} 34. Rb6 {[%clk 0:01:16]}  Rxc4 {[%clk 0:00:10]} 35. Ne2 {[%clk 0:01:14]}  Rc2 {[%clk 0:00:03]} 36. Rxd6+ {[%clk 0:01:13]}  Qxd6 {[%clk 0:00:02]} 37. Nxd6 {[%clk 0:01:14]}  Rb8 {[%clk 0:00:00]} 38. Qa7 {[%clk 0:01:03]} 1-0


[Site "https://www.chess.com"]

[Event "Titled Tuesday Blitz July 18 Early 2023"]
[White "Eugene, Floryan"]
[Black "Jiang, Andrew"]
[WhiteFideId "20694784"]
[BlackFideId "30953510"]
[WhiteElo "2700"]
[BlackElo "2389"]
[Result "1/2-1/2"]
[Round "5"]
[TimeControl "180+2"]
[Date "2023.07.18"]
[WhiteClock "0:00:07"]
[BlackClock "0:00:33"]
[Board "57"]

1. d4 {[%clk 0:03:00]}  d5 {[%clk 0:02:59]} 2. c4 {[%clk 0:02:59]}  c6 {[%clk 0:02:59]} 3. Nf3 {[%clk 0:02:57]}  Nf6 {[%clk 0:02:59]} 4. e3 {[%clk 0:02:57]}  Bf5 {[%clk 0:02:58]} 5. Qb3 {[%clk 0:02:56]}  Qc7 {[%clk 0:02:55]} 6. Nh4 {[%clk 0:02:54]}  Be4 {[%clk 0:02:53]} 7. Nc3 {[%clk 0:02:52]}  Bg6 {[%clk 0:02:51]} 8. Bd2 {[%clk 0:02:44]}  e6 {[%clk 0:02:49]} 9. Nxg6 {[%clk 0:02:41]}  hxg6 {[%clk 0:02:48]} 10. g3 {[%clk 0:02:41]}  a5 {[%clk 0:02:46]} 11. Bg2 {[%clk 0:02:28]}  a4 {[%clk 0:02:35]} 12. Nxa4 {[%clk 0:02:02]}  dxc4 {[%clk 0:02:34]} 13. Qc2 {[%clk 0:02:01]}  b5 {[%clk 0:02:32]} 14. Nc5 {[%clk 0:02:00]}  Bxc5 {[%clk 0:02:30]} 15. dxc5 {[%clk 0:02:00]}  Nbd7 {[%clk 0:02:29]} 16. O-O {[%clk 0:01:45]}  O-O {[%clk 0:02:16]} 17. b4 {[%clk 0:01:42]}  Ne5 {[%clk 0:02:00]} 18. Bc3 {[%clk 0:01:40]}  Nd3 {[%clk 0:02:00]} 19. a4 {[%clk 0:01:30]}  bxa4 {[%clk 0:01:55]} 20. Bxf6 {[%clk 0:01:28]}  gxf6 {[%clk 0:01:51]} 21. Qxc4 {[%clk 0:01:29]}  Ne5 {[%clk 0:01:48]} 22. Qc2 {[%clk 0:01:26]}  a3 {[%clk 0:01:44]} 23. Qc3 {[%clk 0:01:11]}  a2 {[%clk 0:01:39]} 24. f4 {[%clk 0:01:10]}  Nd7 {[%clk 0:01:37]} 25. Rf2 {[%clk 0:01:08]}  Ra7 {[%clk 0:01:22]} 26. Rfxa2 {[%clk 0:01:06]}  Rb7 {[%clk 0:01:20]} 27. Ra6 {[%clk 0:00:58]}  Nb8 {[%clk 0:01:16]} 28. Ra8 {[%clk 0:00:57]}  Nd7 {[%clk 0:01:14]} 29. h4 {[%clk 0:00:47]}  Rfb8 {[%clk 0:01:01]} 30. g4 {[%clk 0:00:35]}  Kg7 {[%clk 0:00:57]} 31. Rxb8 {[%clk 0:00:29]}  Nxb8 {[%clk 0:00:53]} 32. g5 {[%clk 0:00:27]}  Nd7 {[%clk 0:00:53]} 33. Ra6 {[%clk 0:00:26]}  Qb8 {[%clk 0:00:52]} 34. Bxc6 {[%clk 0:00:25]}  Rxb4 {[%clk 0:00:52]} 35. Bxd7 {[%clk 0:00:18]}  e5 {[%clk 0:00:51]} 36. gxf6+ {[%clk 0:00:17]}  Kh7 {[%clk 0:00:51]} 37. Rb6 {[%clk 0:00:17]}  Rb1+ {[%clk 0:00:46]} 38. Kh2 {[%clk 0:00:15]}  Rxb6 {[%clk 0:00:45]} 39. cxb6 {[%clk 0:00:16]}  exf4 {[%clk 0:00:45]} 40. Qc7 {[%clk 0:00:15]}  Qa8 {[%clk 0:00:45]} 41. Bc6 {[%clk 0:00:14]}  Qa2+ {[%clk 0:00:45]} 42. Bg2 {[%clk 0:00:15]}  f3 {[%clk 0:00:43]} 43. Qg3 {[%clk 0:00:14]}  fxg2 {[%clk 0:00:42]} 44. Qxg2 {[%clk 0:00:15]}  Qb3 {[%clk 0:00:41]} 45. Qb7 {[%clk 0:00:13]}  Kh6 {[%clk 0:00:37]} 46. Qb8 {[%clk 0:00:10]}  Kh7 {[%clk 0:00:33]} 47. Qf8 {[%clk 0:00:09]}  Qb2+ {[%clk 0:00:31]} 48. Kh3 {[%clk 0:00:07]}  Qxf6 {[%clk 0:00:31]} 49. Qc5 {[%clk 0:00:05]}  Qf3+ {[%clk 0:00:31]} 50. Kh2 {[%clk 0:00:05]}  Qf2+ {[%clk 0:00:31]} 51. Kh3 {[%clk 0:00:05]}  Qf3+ {[%clk 0:00:32]} 52. Kh2 {[%clk 0:00:06]}  Qf2+ {[%clk 0:00:32]} 53. Kh1 {[%clk 0:00:06]}  Qf1+ {[%clk 0:00:33]} 54. Kh2 {[%clk 0:00:07]}  Qf2+ {[%clk 0:00:33]} 1/2-1/2


[Site "https://www.chess.com"]

[Event "Titled Tuesday Blitz July 18 Early 2023"]
[White "Shimanov, Aleksandr"]
[Black "Belov, Alexei"]
[WhiteFideId "4198603"]
[BlackFideId "4128206"]
[WhiteElo "2991"]
[BlackElo "2623"]
[Result "1-0"]
[Round "5"]
[TimeControl "180+2"]
[Date "2023.07.18"]
[WhiteClock "0:01:35"]
[BlackClock "0:01:45"]
[Board "59"]

1. e4 {[%clk 0:03:00]}  e6 {[%clk 0:02:59]} 2. d4 {[%clk 0:02:59]}  d5 {[%clk 0:02:59]} 3. Nc3 {[%clk 0:02:59]}  Nf6 {[%clk 0:02:58]} 4. Bg5 {[%clk 0:02:58]}  dxe4 {[%clk 0:02:58]} 5. Nxe4 {[%clk 0:02:58]}  Be7 {[%clk 0:02:58]} 6. Nxf6+ {[%clk 0:02:56]}  Bxf6 {[%clk 0:02:58]} 7. Bxf6 {[%clk 0:02:57]}  Qxf6 {[%clk 0:02:59]} 8. Nf3 {[%clk 0:02:58]}  O-O {[%clk 0:02:57]} 9. Qd3 {[%clk 0:02:55]}  Nd7 {[%clk 0:02:51]} 10. Qe3 {[%clk 0:02:32]}  Re8 {[%clk 0:02:45]} 11. O-O-O {[%clk 0:02:31]}  b6 {[%clk 0:02:37]} 12. Bb5 {[%clk 0:02:27]}  Re7 {[%clk 0:02:34]} 13. Bc6 {[%clk 0:02:23]}  Rb8 {[%clk 0:02:34]} 14. Ne5 {[%clk 0:02:23]}  Nf8 {[%clk 0:02:28]} 15. f4 {[%clk 0:02:23]}  Bb7 {[%clk 0:02:21]} 16. Qe4 {[%clk 0:01:49]}  Bxc6 {[%clk 0:02:16]} 17. Nxc6 {[%clk 0:01:49]}  Rbe8 {[%clk 0:02:08]} 18. Nxe7+ {[%clk 0:01:49]}  Rxe7 {[%clk 0:02:08]} 19. g3 {[%clk 0:01:47]}  Re8 {[%clk 0:01:53]} 20. Rhe1 {[%clk 0:01:43]}  Nd7 {[%clk 0:01:53]} 21. Qc6 {[%clk 0:01:41]}  Qd8 {[%clk 0:01:50]} 22. d5 {[%clk 0:01:40]}  e5 {[%clk 0:01:50]} 23. d6 {[%clk 0:01:35]}  Nb8 {[%clk 0:01:45]} 24. Qxc7 {[%clk 0:01:35]} 1-0


[Site "https://www.chess.com"]

[Event "Titled Tuesday Blitz July 18 Early 2023"]
[White "Vaibhav Jayant Raut"]
[Black "Movahed, Sina"]
[WhiteFideId "5089034"]
[BlackFideId "42520835"]
[WhiteElo "2605"]
[BlackElo "2987"]
[Result "0-1"]
[Round "5"]
[TimeControl "180+2"]
[Date "2023.07.18"]
[WhiteClock "0:00:16"]
[BlackClock "0:00:35"]
[Board "60"]

1. e4 {[%clk 0:02:55]}  c5 {[%clk 0:02:58]} 2. Nf3 {[%clk 0:02:54]}  d6 {[%clk 0:02:58]} 3. b3 {[%clk 0:02:54]}  Nf6 {[%clk 0:02:58]} 4. Nc3 {[%clk 0:02:54]}  g6 {[%clk 0:02:57]} 5. Bb2 {[%clk 0:02:53]}  Bg7 {[%clk 0:02:57]} 6. Bb5+ {[%clk 0:02:54]}  Bd7 {[%clk 0:02:56]} 7. a4 {[%clk 0:02:53]}  O-O {[%clk 0:02:56]} 8. O-O {[%clk 0:02:53]}  Bg4 {[%clk 0:02:55]} 9. h3 {[%clk 0:02:50]}  Bxf3 {[%clk 0:02:54]} 10. Qxf3 {[%clk 0:02:51]}  a6 {[%clk 0:02:53]} 11. e5 {[%clk 0:02:45]}  axb5 {[%clk 0:02:17]} 12. exf6 {[%clk 0:02:39]}  Bxf6 {[%clk 0:02:18]} 13. Qxb7 {[%clk 0:02:36]}  Na6 {[%clk 0:02:16]} 14. Qxb5 {[%clk 0:02:11]}  Nb4 {[%clk 0:02:13]} 15. Rac1 {[%clk 0:02:11]}  Qb8 {[%clk 0:01:56]} 16. Qe2 {[%clk 0:02:04]}  Qb7 {[%clk 0:01:50]} 17. Ba1 {[%clk 0:02:00]}  Rfe8 {[%clk 0:01:45]} 18. Rfe1 {[%clk 0:01:46]}  d5 {[%clk 0:01:26]} 19. Qf3 {[%clk 0:01:39]}  Bg7 {[%clk 0:01:22]} 20. Bb2 {[%clk 0:01:10]}  Qc6 {[%clk 0:01:11]} 21. Nd1 {[%clk 0:01:05]}  e5 {[%clk 0:01:08]} 22. d3 {[%clk 0:01:01]}  f5 {[%clk 0:01:03]} 23. c3 {[%clk 0:00:51]}  e4 {[%clk 0:01:00]} 24. dxe4 {[%clk 0:00:43]}  fxe4 {[%clk 0:00:59]} 25. Qg3 {[%clk 0:00:35]}  Nd3 {[%clk 0:00:57]} 26. Re2 {[%clk 0:00:32]}  Nxc1 {[%clk 0:00:48]} 27. Bxc1 {[%clk 0:00:33]}  Rab8 {[%clk 0:00:48]} 28. Bf4 {[%clk 0:00:24]}  Rxb3 {[%clk 0:00:47]} 29. Ne3 {[%clk 0:00:24]}  Rxc3 {[%clk 0:00:45]} 30. Qh4 {[%clk 0:00:24]}  h5 {[%clk 0:00:40]} 31. g4 {[%clk 0:00:23]}  d4 {[%clk 0:00:40]} 32. Ng2 {[%clk 0:00:20]}  Qf6 {[%clk 0:00:35]} 33. Qg3 {[%clk 0:00:16]}  Rxg3 {[%clk 0:00:35]} 0-1


[Site "https://www.chess.com"]

[Event "Titled Tuesday Blitz July 18 Early 2023"]
[White "Przybylski, Wojciech"]
[Black "Remizov, Yaroslav"]
[WhiteFideId "1117599"]
[BlackFideId "34134015"]
[WhiteElo "2593"]
[BlackElo "2757"]
[Result "0-1"]
[Round "5"]
[TimeControl "180+2"]
[Date "2023.07.18"]
[WhiteClock "0:00:04"]
[BlackClock "0:00:15"]
[Board "64"]

1. d4 {[%clk 0:03:00]}  Nf6 {[%clk 0:02:59]} 2. c4 {[%clk 0:03:00]}  c5 {[%clk 0:02:58]} 3. Nf3 {[%clk 0:02:58]}  cxd4 {[%clk 0:02:58]} 4. Nxd4 {[%clk 0:02:59]}  e5 {[%clk 0:02:57]} 5. Nb3 {[%clk 0:02:59]}  d5 {[%clk 0:02:57]} 6. cxd5 {[%clk 0:02:58]}  Qxd5 {[%clk 0:02:58]} 7. Qc2 {[%clk 0:02:53]}  Nc6 {[%clk 0:02:56]} 8. Nc3 {[%clk 0:02:50]}  Nb4 {[%clk 0:02:41]} 9. Qb1 {[%clk 0:02:49]}  Qd8 {[%clk 0:02:36]} 10. a3 {[%clk 0:02:48]}  Nbd5 {[%clk 0:02:36]} 11. Bd2 {[%clk 0:02:48]}  Be7 {[%clk 0:02:34]} 12. e4 {[%clk 0:02:47]}  Nxc3 {[%clk 0:02:31]} 13. Bxc3 {[%clk 0:02:46]}  Be6 {[%clk 0:02:30]} 14. Bb5+ {[%clk 0:02:42]}  Kf8 {[%clk 0:02:27]} 15. Nd2 {[%clk 0:02:39]}  Qb6 {[%clk 0:02:20]} 16. Be2 {[%clk 0:02:34]}  Nd7 {[%clk 0:01:59]} 17. O-O {[%clk 0:02:30]}  f6 {[%clk 0:01:58]} 18. b4 {[%clk 0:02:27]}  Kf7 {[%clk 0:01:58]} 19. Qb2 {[%clk 0:02:23]}  Rac8 {[%clk 0:01:55]} 20. Rac1 {[%clk 0:02:21]}  Rhd8 {[%clk 0:01:55]} 21. Kh1 {[%clk 0:02:20]}  Kg8 {[%clk 0:01:52]} 22. h3 {[%clk 0:02:12]}  Nb8 {[%clk 0:01:51]} 23. b5 {[%clk 0:02:05]}  Nd7 {[%clk 0:01:50]} 24. Nb3 {[%clk 0:01:57]}  Bxb3 {[%clk 0:01:24]} 25. Qxb3+ {[%clk 0:01:57]}  Kf8 {[%clk 0:01:25]} 26. f4 {[%clk 0:01:46]}  exf4 {[%clk 0:01:22]} 27. Bg4 {[%clk 0:01:37]}  Nc5 {[%clk 0:01:15]} 28. Qb1 {[%clk 0:01:30]}  Rc7 {[%clk 0:01:09]} 29. e5 {[%clk 0:01:29]}  Nd3 {[%clk 0:00:59]} 30. exf6 {[%clk 0:01:21]}  Bxf6 {[%clk 0:00:54]} 31. Bxf6 {[%clk 0:01:18]}  Rxc1 {[%clk 0:00:51]} 32. Rxc1 {[%clk 0:00:51]}  Qxf6 {[%clk 0:00:51]} 33. Rf1 {[%clk 0:00:45]}  Qd4 {[%clk 0:00:45]} 34. Be2 {[%clk 0:00:39]}  Nf2+ {[%clk 0:00:40]} 35. Kh2 {[%clk 0:00:39]}  Qe3 {[%clk 0:00:36]} 36. Bf3 {[%clk 0:00:26]}  Nd3 {[%clk 0:00:31]} 37. Qb3 {[%clk 0:00:19]}  g6 {[%clk 0:00:20]} 38. Qc4 {[%clk 0:00:18]}  Qd4 {[%clk 0:00:18]} 39. Qc7 {[%clk 0:00:15]}  Rd7 {[%clk 0:00:17]} 40. Qb8+ {[%clk 0:00:14]}  Kg7 {[%clk 0:00:18]} 41. Bxb7 {[%clk 0:00:11]}  Qb6 {[%clk 0:00:17]} 42. Qe8 {[%clk 0:00:04]}  Qxb7 {[%clk 0:00:17]} 43. a4 {[%clk 0:00:05]}  Qd5 {[%clk 0:00:16]} 44. Rf3 {[%clk 0:00:05]}  Rf7 {[%clk 0:00:15]} 45. Qb8 {[%clk 0:00:04]}  Ne5 {[%clk 0:00:15]} 46. Rf2 {[%clk 0:00:04]}  f3 {[%clk 0:00:15]} 47. gxf3 {[%clk 0:00:03]}  Nxf3+ {[%clk 0:00:15]} 48. Kg3 {[%clk 0:00:04]}  Qg5# {[%clk 0:00:15]} 0-1


[Site "https://www.chess.com"]